bitfinex/quotes_SOLUSD_20251007
["timestamp","ask_amount","ask_price","bid_price","bid_amount"]
[1759847384806,20.8,225.4,225.37,0.1]
[1759847385182,0.67,225.39,225.37,0.1]
[1759847385387,5.10675407,225.39,225.38,3.02]
[1759847385802,20.8,225.4,225.38,3.02]
[1759847386006,25.2366269,225.4,225.38,3.02]
[1759847386209,0.67,225.39,225.38,3.02]
[1759847386583,8.25450699,225.39,225.37,0.1]
[1759847386784,7.58450699,225.38,225.37,0.1]
[1759847386984,36.32801997,225.4,225.37,0.1]
[1759847387205,7.58450699,225.38,225.37,0.1]
[1759847387508,36.32801997,225.4,225.37,0.1]
[1759847387816,36.32801997,225.4,225.38,34.56]
[1759847387994,36.32801997,225.4,225.38,52.54]
[1759847388195,7.58450699,225.39,225.38,52.54]
[1759847388490,32.82113389,225.4,225.38,52.54]
[1759847389108,25.2366269,225.4,225.38,52.54]
[1759847389313,25.2366269,225.4,225.38,53.23]
[1759847389694,4.4366269,225.4,225.38,53.23]
[1759847390601,4.4366269,225.4,225.38,52.54]
[1759847390799,32.82113389,225.4,225.38,52.54]
[1759847390995,7.58450699,225.39,225.38,52.54]
[1759847391192,7.58450699,225.39,225.37,0.1]
[1759847391193,8.25450699,225.39,225.37,34.58]
[1759847391397,7.58450699,225.38,225.37,34.58]
[1759847391697,25.23695092,225.38,225.37,34.58]
[1759847392001,33.49145791,225.38,225.37,34.58]
[1759847392205,25.23695092,225.38,225.37,34.58]
[1759847392395,4.43695092,225.38,225.37,35.27]
[1759847392590,20.8,225.41,225.37,35.27]
[1759847392911,7.58450699,225.4,225.38,32.86]
[1759847393111,7.58450699,225.39,225.38,32.86]
[1759847393618,0.67,225.39,225.31,0.1]
[1759847393826,7.58450699,225.35,225.31,0.1]
[1759847394198,7.58450699,225.35,225.31,0.79]
[1759847394736,7.58450699,225.32,225.24,0.69]
[1759847394901,7.58450699,225.29,225.24,0.69]
[1759847395111,25.94724525,225.28,225.25,0.69]
[1759847395300,25.94724525,225.28,225.26,32.34]
[1759847395704,20.8,225.28,225.26,33.03]
[1759847395902,20.8,225.28,225.26,32.34]
[1759847396622,5.14724525,225.27,225.26,32.34]
[1759847396921,20.8,225.28,225.26,32.34]
[1759847397325,5.14724525,225.27,225.26,32.34]
[1759847397624,4.43832941,225.31,225.26,67.64]
[1759847397823,4.43793547,225.33,225.27,0.72]
[1759847398121,10.87647521,225.4,225.27,0.72]
[1759847398323,2.99480942,225.43,225.27,0.72]
[1759847398523,18.07277901,225.41,225.28,10.87647521]
[1759847398728,2.31480942,225.43,225.28,10.87647521]
[1759847398729,4.43599315,225.43,225.3,10.87647521]
[1759847398902,3.84097961,225.43,225.32,10.87647521]
[1759847399102,4.43557329,225.45,225.34,10.87647521]
[1759847399309,4.43557329,225.45,225.35,0.72]
[1759847399623,11.08697827,225.49,225.36,10.87647521]
[1759847399938,4.43502706,225.48,225.38,10.87647521]
[1759847400139,4.43502706,225.48,225.39,0.72]
[1759847400343,9.5816856,225.51,225.4,32.86]
[1759847400522,4.43400723,225.53,225.41,0.72]
[1759847400847,5.14724525,225.55,225.42,10.87647521]
[1759847401135,33.80710679,225.57,225.43,0.72]
[1759847401438,5.14724525,225.55,225.43,0.72]
[1759847401648,15.51418439,225.6,225.44,43.73647521]
[1759847401820,15.51418439,225.6,225.46,10.87647521]
[1759847402133,20.8,225.57,225.47,32.86]
[1759847402301,0.68,225.56,225.47,32.86]
[1759847402503,5.14724525,225.48,225.35,10.87647521]
[1759847402727,21.48,225.51,225.4,0.72]
[1759847402935,5.14724525,225.47,225.4,0.72]
[1759847403122,21.48,225.51,225.4,0.72]
[1759847403310,0.68,225.51,225.4,0.72]
[1759847403507,0.68,225.56,225.41,10.87647521]
[1759847403711,5.14724525,225.49,225.42,0.72]
[1759847403916,21.48,225.49,225.43,32.84]
[1759847404221,5.14724525,225.44,225.38,0.72]
[1759847404414,0.68,225.48,225.39,32.84]
[1759847404610,5.14724525,225.44,225.39,32.84]
[1759847404814,5.14724525,225.43,225.39,32.84]
[1759847405139,31.67647521,225.48,225.39,32.84]
[1759847405338,5.14724525,225.41,225.39,32.84]
[1759847405522,0.68,225.41,225.32,0.72]
[1759847405723,15.52863924,225.39,225.33,32.84]
[1759847406027,5.14724525,225.37,225.33,32.84]
[1759847406215,15.52863924,225.39,225.33,32.84]
[1759847406933,5.14724525,225.36,225.33,32.84]
[1759847407133,5.14724525,225.35,225.29,0.72]
[1759847407434,5.14724525,225.34,225.3,32.84]
[1759847407644,5.14724525,225.32,225.3,32.84]
[1759847407807,20.8,225.36,225.3,33.56]
[1759847408007,15.5313956,225.35,225.3,32.84]
[1759847408211,21.35864085,225.35,225.3,32.84]
[1759847408424,16.2113956,225.35,225.3,32.84]
[1759847408627,5.14724525,225.33,225.3,32.84]
[1759847408825,0.68,225.32,225.3,32.84]
[1759847409226,5.14724525,225.33,225.3,32.84]
[1759847409620,16.2113956,225.35,225.3,32.84]
[1759847409941,15.5313956,225.35,225.3,32.84]
[1759847410136,5.14724525,225.31,225.26,34.58]
[1759847410331,5.14724525,225.28,225.26,34.58]
[1759847410520,0.68,225.27,225.26,34.58]
[1759847410837,20.8,225.24,225.16,0.72]
[1759847411225,26.62724525,225.29,225.16,0.72]
[1759847411437,26.62724525,225.29,225.17,32.84]
[1759847411642,26.62724525,225.29,225.18,0.72]
[1759847411816,4.4391175,225.27,225.18,0.72]
[1759847412135,20.8,225.29,225.18,0.72]
[1759847412319,20.8,225.26,225.18,0.72]
[1759847412524,20.8,225.25,225.18,0.72]
[1759847412730,20.8,225.24,225.19,32.84]
[1759847412915,20.8,225.24,225.19,33.56]
[1759847413115,20.8,225.24,225.2,0.72]
[1759847413818,4.43990587,225.23,225.2,0.72]
[1759847414436,11.77687271,225.29,225.21,0.72]
[1759847414751,0.68,225.32,225.21,0.72]
[1759847414927,20.8,225.29,225.21,0.72]
[1759847415931,4.43864739,225.3,225.21,0.72]
[1759847416230,36.33496341,225.3,225.22,32.84]
[1759847416448,20.8,225.3,225.23,0.72]
[1759847416631,25.23853549,225.3,225.23,0.72]
[1759847416827,36.33485151,225.3,225.23,0.72]
[1759847417332,25.23853549,225.3,225.23,0.72]
[1759847417537,0.68,225.29,225.22,32.84]
[1759847417716,36.33485151,225.3,225.23,34.6]
[1759847417918,0.68,225.29,225.23,34.6]
[1759847418132,0.68,225.28,225.23,34.6]
[1759847418331,0.68,225.27,225.23,34.6]
[1759847418539,25.91853549,225.3,225.23,34.6]
[1759847418952,37.01485151,225.3,225.24,32.84]
[1759847419117,20.8,225.27,225.23,34.6]
[1759847419455,0.68,225.26,225.24,32.84]
[1759847419919,20.8,225.25,225.24,32.84]
[1759847420644,4.43913742,225.27,225.24,32.84]
[1759847420955,15.53693117,225.27,225.24,32.84]
[1759847421122,4.43913742,225.27,225.24,32.84]
[1759847421324,4.4385264,225.3,225.25,0.72]
[1759847421528,4.43793547,225.33,225.26,0.72]
[1759847421840,4.4375416,225.35,225.23,34.6]
[1759847422041,16.24208393,225.33,225.24,32.82]
[1759847422233,0.68,225.32,225.25,32.82]
[1759847422827,5.82724525,225.32,225.25,32.82]
[1759847423145,0.68,225.32,225.25,32.82]
[1759847423326,4.4375416,225.35,225.26,0.72]
[1759847423526,0.68,225.34,225.25,32.82]
[1759847423749,0.68,225.34,225.26,32.82]
[1759847423921,15.53277415,225.33,225.26,32.82]
[1759847424458,15.53277415,225.33,225.24,0.72]
[1759847424628,0.68,225.32,225.23,34.6]
[1759847424822,5.11793547,225.33,225.24,33.54]
[1759847425051,4.43793547,225.33,225.25,0.72]
[1759847425232,15.53277415,225.33,225.25,0.72]
[1759847425439,4.43695092,225.38,225.25,0.72]
[1759847425625,4.43695092,225.38,225.26,10.87647521]
[1759847425821,15.52932823,225.38,225.27,0.72]
[1759847426031,0.68,225.37,225.28,32.82]
[1759847426232,15.52932823,225.38,225.29,0.72]
[1759847426447,4.43695092,225.38,225.3,10.87647521]
[1759847426650,16.20932823,225.38,225.21,11.10062074]
[1759847426830,0.68,225.37,225.27,0.67]
[1759847427438,5.82724525,225.37,225.27,0.67]
[1759847427643,20.8,225.35,225.28,32.82]
[1759847427837,15.53277415,225.33,225.24,20.8]
[1759847428037,20.8,225.3,225.23,34.6]
[1759847428270,5.82724525,225.29,225.24,32.82]
[1759847428552,0.68,225.28,225.24,32.82]
[1759847428851,20.8,225.3,225.25,32.82]
[1759847429148,0.68,225.3,225.25,32.82]
[1759847429450,0.68,225.29,225.26,32.82]
[1759847429652,20.8,225.27,225.16,0.67]
[1759847429828,0.68,225.26,225.17,67.42]
[1759847430159,16.21829078,225.25,225.18,32.82]
[1759847430337,5.82724525,225.24,225.18,32.82]
[1759847430544,20.8,225.19,225.14,0.1]
[1759847431034,21.48,225.18,225.15,0.12]
[1759847431237,20.8,225.18,225.15,0.12]
[1759847431456,0.68,225.17,225.14,0.1]
[1759847431633,20.8,225.21,225.16,11.28]
[1759847431952,15.54174066,225.2,225.17,22.0]
[1759847432137,15.54174066,225.2,225.14,0.1]
[1759847432138,0.68,225.19,225.14,0.1]
[1759847432346,0.68,225.19,225.15,32.82]
[1759847432548,5.82724525,225.18,225.15,32.82]
[1759847432743,0.68,225.18,225.14,0.1]
[1759847432942,5.14724525,225.15,225.03,10.87647521]
[1759847433257,5.14724525,225.13,225.02,21.47]
[1759847433450,0.68,225.12,225.04,26.48]
[1759847433647,5.82724525,225.11,225.05,32.82]
[1759847433865,0.68,225.11,225.05,32.82]
[1759847434162,25.24191426,225.13,225.05,32.82]
[1759847434338,5.82724525,225.12,225.06,32.82]
[1759847434531,5.82724525,225.11,225.07,32.82]
[1759847434833,0.68,225.1,225.08,32.82]
[1759847435038,5.14724525,225.1,224.98,4.54468929]
[1759847435247,10.87647521,225.11,224.98,0.1]
[1759847435458,20.8,225.1,224.99,32.82]
[1759847435762,5.14724525,225.1,224.99,37.93464198]
[1759847435957,4.44148345,225.15,225.03,4.44385193]
[1759847436259,5.82724525,225.14,225.04,33.49]
[1759847436461,20.69243733,225.15,225.04,32.82]
[1759847436752,16.22519208,225.15,225.05,0.67]
[1759847436954,4.44127009,225.17,225.05,0.67]
[1759847437161,21.48,225.18,225.07,20.8]
[1759847437360,0.68,225.17,225.09,10.87647521]
[1759847437564,0.68,225.17,225.1,32.82]
[1759847437767,0.68,225.17,225.11,34.6]
[1759847438078,15.54519208,225.15,225.12,32.82]
[1759847438266,0.68,225.14,225.12,32.82]
[1759847438648,0.68,225.18,225.12,32.82]
[1759847438958,5.14724525,225.14,225.13,32.82]
[1759847439155,5.82724525,225.14,225.13,32.82]
[1759847439358,5.82724525,225.14,225.11,34.6]
[1759847439566,16.02372046,225.12,225.11,34.6]
[1759847439857,16.70372046,225.12,224.98,0.1]
[1759847440062,16.70372046,225.12,224.98,0.77]
[1759847440063,15.54795432,225.11,224.98,0.77]
[1759847440263,5.14724525,225.04,224.98,0.1]
[1759847440636,5.14724525,225.05,224.99,13.68]
[1759847440836,5.14724525,225.05,224.98,0.1]
[1759847440837,20.8,225.08,224.98,0.1]
[1759847441066,5.14724525,224.99,224.98,0.1]
[1759847441264,5.14724525,224.99,224.98,2.54]
[1759847441454,20.8,225.03,224.98,2.54]
[1759847441649,5.14724525,225.01,224.98,0.1]
[1759847441855,21.48,225.03,224.99,24.76]
[1759847442057,15.55486422,225.01,225.0,28.48]
[1759847442249,16.23486422,225.01,224.98,0.1]
[1759847442455,20.8,224.99,224.98,0.1]
[1759847442650,20.8,224.99,224.98,25.46]
[1759847442852,15.55486422,225.01,224.98,25.46]
[1759847442853,4.44424692,225.01,224.98,25.46]
[1759847443165,5.123457,225.05,224.98,25.46]
[1759847443371,4.443457,225.05,224.98,26.13]
[1759847443570,4.443457,225.05,224.98,4.54483267]
[1759847443872,4.44322444,225.07,224.99,33.49]
[1759847444074,5.14724525,225.09,225.0,4.44444444]
[1759847444075,4.44266737,225.09,225.0,4.44444444]
[1759847444269,4.44266737,225.09,225.01,11.54647521]
[1759847444650,0.68,225.14,225.03,10.87647521]
[1759847444850,5.14724525,225.15,225.04,21.47]
[1759847445062,5.14724525,225.16,225.05,32.82]
[1759847445245,21.48,225.18,225.05,32.82]
[1759847445451,0.68,225.18,225.06,0.67]
[1759847445669,5.82724525,225.18,225.06,0.67]
[1759847445870,26.62724525,225.18,225.04,20.8]
[1759847446080,5.14724525,225.15,225.05,53.62]
[1759847446256,20.8,225.18,225.06,0.67]
[1759847446451,0.68,225.2,225.07,10.87647521]
[1759847446758,5.1205027,225.2,225.09,31.67647521]
[1759847446955,5.14724525,225.19,225.1,32.82]
[1759847447171,5.14724525,225.12,225.11,32.84]
[1759847447476,5.82724525,225.12,224.99,20.8]
[1759847447674,5.14724525,225.08,225.0,34.62]
[1759847447856,5.14724525,225.06,225.01,32.86]
[1759847448064,0.68,225.05,225.02,32.88]
[1759847448257,4.44365446,225.04,225.02,32.88]
[1759847448459,4.44365446,225.04,225.0,34.62]
[1759847448460,5.82724525,225.03,225.0,34.62]
[1759847448656,15.55279061,225.04,225.01,32.88]
[1759847448954,5.14724525,225.03,225.01,32.88]
[1759847449149,4.44365446,225.04,225.01,32.88]
[1759847449370,5.14724525,225.09,225.01,32.88]
[1759847449676,16.25352448,225.1,225.02,0.67]
[1759847449973,5.14724525,225.07,225.03,32.88]
[1759847450184,4.443457,225.05,225.0,34.62]
[1759847450485,4.443457,225.05,225.01,32.88]
[1759847451459,4.44266737,225.09,225.02,0.67]
[1759847451658,5.14724525,225.08,225.03,32.86]
[1759847451871,0.68,225.07,225.03,32.86]
[1759847452075,15.54933581,225.09,225.03,32.86]
[1759847452575,4.44266737,225.09,225.03,32.86]
[1759847452762,4.44266737,225.09,225.04,0.67]
[1759847453072,4.44266737,225.09,225.0,34.62]
[1759847453270,4.44266737,225.09,225.05,32.9]
[1759847453877,4.44187802,225.13,225.06,0.67]
[1759847454076,5.14724525,225.14,225.06,0.67]
[1759847454077,4.44169297,225.14,225.07,32.88]
[1759847454280,4.44108895,225.17,225.07,32.88]
[1759847454579,4.44069452,225.19,225.08,0.67]
[1759847454767,5.14724525,225.16,225.06,21.47]
[1759847454959,5.14724525,225.14,225.06,0.67]
[1759847455168,5.14724525,225.14,225.07,32.9]
[1759847455367,0.68,225.16,225.07,32.9]
[1759847455559,0.68,225.2,225.08,33.57]
[1759847455759,4.43990587,225.23,225.12,20.8]
[1759847455970,4.43961061,225.25,225.13,33.59]
[1759847456257,11.09871142,225.26,225.14,0.67]
[1759847456575,5.14724525,225.24,225.15,33.0]
[1759847456763,5.86724525,225.25,225.15,33.0]
[1759847456954,5.14724525,225.24,225.15,33.0]
[1759847457160,7.61226713,225.19,225.06,0.69]
[1759847457363,21.52,225.18,225.06,0.69]
[1759847457583,7.61226713,225.17,225.06,0.69]
[1759847458082,7.61226713,225.13,225.0,34.62]
[1759847458291,15.54795432,225.11,225.0,34.62]
[1759847458481,4.44227266,225.11,225.01,33.79]
[1759847458656,4.44227266,225.11,225.0,34.62]
[1759847458862,0.72,225.1,225.01,33.1]
[1759847459365,4.44227266,225.11,225.01,33.1]
[1759847459572,4.44205926,225.13,225.02,44.68647521]
[1759847459770,0.72,225.17,225.04,10.87647521]
[1759847459972,4.44108895,225.17,225.07,20.8]
[1759847460160,0.72,225.22,225.08,33.83]
[1759847460362,15.54105057,225.21,225.09,15.31914258]
[1759847460563,4.44030016,225.21,225.1,0.69]
[1759847461064,11.81857152,225.26,225.11,33.16]
[1759847461370,11.81857152,225.26,225.14,20.8]
[1759847461371,5.15931456,225.26,225.14,20.8]
[1759847461564,4.43931456,225.26,225.15,0.69]
[1759847461765,7.61226713,225.25,225.15,0.69]
[1759847461968,7.61226713,225.24,225.16,33.16]
[1759847462271,23.15124776,225.24,225.16,33.16]
[1759847462883,25.23950325,225.26,225.17,33.16]
[1759847463191,4.43950325,225.26,225.18,0.69]
[1759847463698,15.53778967,225.26,225.14,0.69]
[1759847464007,0.72,225.25,225.15,33.22]
[1759847464169,7.61226713,225.22,225.15,33.22]
[1759847464375,7.61226713,225.23,225.16,33.22]
[1759847464679,15.53898063,225.24,225.16,33.22]
[1759847464881,15.53898063,225.24,225.16,33.91]
[1759847465296,4.43970875,225.24,225.17,0.69]
[1759847466197,4.43948259,225.26,225.17,0.69]
[1759847466396,11.09828642,225.26,225.17,0.69]
[1759847466593,11.09828642,225.26,225.18,33.18]
[1759847467317,11.81828642,225.26,225.19,33.18]
[1759847467492,11.09828642,225.26,225.19,33.18]
[1759847467695,4.43892045,225.28,225.2,0.69]
[1759847468002,12.77118758,225.28,225.14,0.69]
[1759847468176,0.72,225.28,225.18,20.8]
[1759847468376,2.31581549,225.33,225.2,4.44049733]
[1759847468377,7.47384611,225.33,225.2,4.44049733]
[1759847468602,0.72,225.32,225.21,33.18]
[1759847469188,4.43785199,225.34,225.22,33.18]
[1759847469189,20.8,225.3,225.22,33.18]
[1759847469389,7.61226713,225.25,225.23,34.62]
[1759847469594,20.8,225.3,225.23,34.62]
[1759847469595,0.72,225.24,225.23,34.62]
[1759847469900,7.61226713,225.26,225.23,34.62]
[1759847470085,0.72,225.25,225.23,34.62]
[1759847470282,7.61226713,225.26,225.23,34.62]
[1759847470486,11.81729773,225.29,225.23,34.62]
[1759847470893,4.43892045,225.28,225.23,34.62]
[1759847471084,7.61226713,225.27,225.23,34.62]
[1759847471285,0.72,225.26,225.24,33.18]
[1759847471597,5.15892045,225.28,225.24,33.18]
[1759847471782,0.72,225.27,225.24,33.18]
[1759847471982,15.53622158,225.28,225.24,33.18]
[1759847472401,16.25622158,225.28,225.24,33.18]
[1759847472604,23.86848871,225.28,225.24,33.18]
[1759847472831,22.40693306,225.48,225.24,33.18]
[1759847473109,7.61226713,225.27,225.24,33.18]
[1759847473324,10.87647521,225.37,225.24,33.18]
[1759847473606,10.87647521,225.37,225.25,33.14]
[1759847473823,7.61226713,225.26,225.25,33.14]
[1759847473977,10.87647521,225.31,225.23,34.62]
[1759847474181,10.87647521,225.23,225.12,0.69]
[1759847474382,7.61226713,225.14,225.08,0.69]
[1759847474603,15.54036053,225.22,225.08,0.69]
[1759847474905,20.8,225.19,225.09,10.87647521]
[1759847475198,20.4678753,225.19,225.1,0.69]
[1759847475403,7.61226713,225.2,225.1,33.87]
[1759847475721,0.72,225.25,225.11,0.69]
[1759847475883,7.61226713,225.23,225.12,10.87647521]
[1759847476199,0.72,225.25,225.13,21.49]
[1759847476607,7.61226713,225.23,225.13,25.93185174]
[1759847476905,7.61226713,225.19,225.14,33.16]
[1759847477095,7.61226713,225.17,225.15,33.16]
[1759847477288,0.72,225.16,225.06,0.69]
[1759847477491,0.72,225.16,225.07,33.16]
[1759847477696,0.72,225.16,225.08,34.6]
[1759847478106,7.61226713,225.13,225.08,34.6]
[1759847478294,7.61226713,225.13,225.08,35.29]
[1759847478491,4.44207533,225.12,225.08,34.6]
[1759847478808,7.61226713,225.09,225.08,34.6]
[1759847479010,7.61226713,225.1,225.09,33.18]
[1759847479205,7.61226713,225.1,225.08,34.6]
[1759847479404,15.54726367,225.12,225.09,33.16]
[1759847479605,7.61226713,225.1,225.09,33.16]
[1759847480200,20.8,225.16,225.09,33.16]
[1759847480398,4.44128619,225.16,225.09,33.85]
[1759847480597,12.05296165,225.19,225.1,0.69]
[1759847480803,12.05275294,225.21,225.11,10.87647521]
[1759847481008,4.44048581,225.21,225.12,0.69]
[1759847481823,4.43977211,225.24,225.13,10.87647521]
[1759847481994,4.43977211,225.24,225.14,33.87]
[1759847482199,15.53904399,225.24,225.14,33.87]
[1759847482413,15.53904399,225.24,225.15,0.69]
[1759847482813,7.61226713,225.21,225.16,33.16]
[1759847483014,7.61226713,225.21,225.17,33.16]
[1759847483314,7.61226713,225.23,225.18,0.69]
[1759847483505,23.15131112,225.24,225.19,33.16]
[1759847483698,0.72,225.23,225.2,33.16]
[1759847484015,8.33226713,225.23,225.21,33.16]
[1759847484317,4.43977211,225.24,225.21,33.16]
[1759847485818,4.43951125,225.26,225.22,0.69]
[1759847486017,11.09654528,225.3,225.23,0.69]
[1759847486224,11.09654528,225.3,225.21,33.16]
[1759847486225,7.61226713,225.28,225.21,33.16]
[1759847486594,15.53553197,225.29,225.21,33.16]
[1759847486814,15.53553197,225.29,225.17,4.44106972]
[1759847486815,4.43843567,225.31,225.22,33.82]
[1759847487019,4.43734469,225.36,225.23,0.68]
[1759847487202,5.11714894,225.37,225.24,10.87647521]
[1759847487395,12.04941607,225.37,225.25,0.68]
[1759847487799,12.04941607,225.37,225.26,10.87647521]
[1759847488099,12.04941607,225.37,225.23,20.8]
[1759847488100,4.43714894,225.37,225.28,10.87647521]
[1759847488308,4.43714894,225.37,225.29,33.84]
[1759847488507,4.43714894,225.37,225.3,0.68]
[1759847488707,4.43714894,225.37,225.31,34.6]
[1759847488905,4.43675407,225.39,225.32,0.68]
[1759847489102,15.52863924,225.39,225.32,0.68]
[1759847489300,0.2,225.41,225.33,10.87647521]
[1759847489520,0.2,225.41,225.35,10.87647521]
[1759847489719,4.63642529,225.41,225.36,33.14]
[1759847490023,0.2,225.41,225.37,0.68]
[1759847490224,0.2,225.41,225.38,0.68]
[1759847490532,0.2,225.41,225.39,0.68]
[1759847490704,0.2,225.41,225.4,0.68]
[1759847491703,4.63649692,225.41,225.37,10.87647521]
[1759847491906,4.63649692,225.41,225.38,33.8]
[1759847492107,0.2,225.41,225.38,0.68]
[1759847492322,0.2,225.41,225.39,33.8]
[1759847493002,0.2,225.41,225.34,20.8]
[1759847493003,0.2,225.41,225.4,33.16]
[1759847493206,4.43655723,225.4,225.31,34.6]
[1759847493406,7.61226713,225.37,225.32,33.18]
[1759847493625,20.8,225.38,225.32,33.18]
[1759847493932,15.5279503,225.4,225.32,33.86]
[1759847494316,4.43655723,225.4,225.32,0.68]
[1759847494632,4.43655723,225.4,225.33,33.2]
[1759847495324,0.2,225.41,225.35,10.87647521]
[1759847495510,0.2,225.41,225.36,20.8]
[1759847495713,4.63640476,225.41,225.35,0.68]
[1759847495921,15.72730578,225.41,225.35,0.68]
[1759847496114,15.72730578,225.41,225.36,33.18]
[1759847497028,4.63640476,225.41,225.37,0.68]
[1759847497403,0.2,225.41,225.37,0.68]
[1759847497610,4.63640478,225.41,225.38,0.68]
[1759847498109,4.63640478,225.41,225.39,0.67]
[1759847498110,0.2,225.41,225.39,0.67]
[1759847498297,0.2,225.41,225.4,33.16]
[1759847498919,0.2,225.41,225.4,33.83]
[1759847499120,0.2,225.41,225.4,44.70647521]
[1759847501811,0.2,225.41,225.4,32.34647521]
[1759847502119,0.2,225.41,225.4,11.54647521]
[1759847502317,0.2,225.41,225.4,44.66647521]
[1759847503626,0.2,225.41,225.4,11.54647521]
[1759847503825,0.2,225.41,225.4,43.95647521]
[1759847504008,0.2,225.41,225.4,44.62647521]
[1759847504320,0.2,225.41,225.4,32.34647521]
[1759847504525,0.2,225.41,225.4,64.75647521]
[1759847504929,0.2,225.41,225.4,65.42647521]
[1759847506123,0.2,225.41,225.4,64.73647521]
[1759847506320,0.2,225.41,225.4,20.8]
[1759847506520,0.2,225.41,225.4,53.88]
[1759847506716,0.2,225.41,225.4,54.55]
[1759847506914,0.2,225.41,225.4,53.88]
[1759847507914,0.2,225.41,225.4,33.06]
[1759847508432,0.2,225.41,225.4,44.60647521]
[1759847508907,0.2,225.41,225.4,33.06]
[1759847509533,0.2,225.41,225.37,10.87647521]
[1759847509854,0.71,225.4,225.39,20.8]
[1759847510014,0.2,225.41,225.39,33.04]
[1759847510216,4.63637806,225.41,225.39,33.04]
[1759847510423,5.34637806,225.41,225.36,20.8]
[1759847510736,0.71,225.4,225.36,20.8]
[1759847510921,0.71,225.4,225.32,10.87647521]
[1759847511244,8.32226713,225.39,225.31,34.6]
[1759847511539,0.71,225.38,225.32,33.06]
[1759847511748,0.71,225.38,225.31,34.6]
[1759847511927,4.4371478,225.37,225.33,33.06]
[1759847512235,0.71,225.36,225.34,33.06]
[1759847512536,0.71,225.35,225.31,34.6]
[1759847512738,0.71,225.35,225.32,33.04]
[1759847513119,4.4371478,225.37,225.32,33.04]
[1759847513320,0.71,225.35,225.32,33.04]
[1759847513839,15.5300173,225.37,225.32,33.04]
[1759847514038,0.71,225.35,225.32,33.04]
[1759847514419,0.91,225.41,225.32,33.04]
[1759847514722,8.32226713,225.4,225.32,33.04]
[1759847514921,8.32226713,225.39,225.32,33.04]
[1759847515122,0.71,225.38,225.32,33.04]
[1759847515530,16.43729192,225.41,225.32,33.04]
[1759847515738,5.3463909,225.41,225.32,38.14809776]
[1759847516542,5.3463909,225.41,225.32,0.67]
[1759847517046,5.3463909,225.41,225.33,33.0]
[1759847517223,16.43729192,225.41,225.33,33.0]
[1759847517557,0.2,225.41,225.34,10.87647521]
[1759847517850,0.2,225.41,225.35,0.68]
[1759847518050,0.2,225.41,225.36,33.0]
[1759847518863,4.63638138,225.41,225.36,33.0]
[1759847519071,4.63638138,225.41,225.36,33.68]
[1759847519356,0.2,225.41,225.37,0.68]
[1759847519655,0.2,225.41,225.38,0.68]
[1759847519961,0.2,225.41,225.39,33.64]
[1759847520133,0.2,225.41,225.39,32.96]
[1759847520338,0.2,225.41,225.4,32.96]
[1759847520545,0.2,225.41,225.36,10.87647521]
[1759847520722,0.2,225.41,225.37,33.64]
[1759847520923,0.2,225.41,225.38,4.43695092]
[1759847521229,0.2,225.41,225.38,0.68]
[1759847521542,0.2,225.41,225.39,33.64]